[Event "Late-Titled-Tuesday-Blitz-May-14-2024"]
[Site "Chess.com"]
[Date "2024.05.14"]
[Round "7"]
[White "emeli_chess"]
[Black "ClauAmura"]
[Result "0-1"]
[WhiteElo "2397"]
[BlackElo "2341"]
[TimeControl "180+1"]
[EndTime "15:17:18 PDT"]
[Termination "ClauAmura won by checkmate"]

1. d4 {[%clk 0:03:00.9]} 1... Nf6 {[%clk 0:02:59.1]} 2. c4 {[%clk 0:03:00.4]}
2... e6 {[%clk 0:02:53.7]} 3. Nc3 {[%clk 0:03:00.4]} 3... d5 {[%clk 0:02:52.4]}
4. cxd5 {[%clk 0:03:00]} 4... Nxd5 {[%clk 0:02:50.8]} 5. e4 {[%clk 0:02:59.3]}
5... Nxc3 {[%clk 0:02:50.8]} 6. bxc3 {[%clk 0:03:00.2]} 6... c5 {[%clk
0:02:51.3]} 7. Nf3 {[%clk 0:03:00.3]} 7... cxd4 {[%clk 0:02:51.1]} 8. cxd4
{[%clk 0:03:00.6]} 8... Bb4+ {[%clk 0:02:51.7]} 9. Bd2 {[%clk 0:03:01]} 9... Qa5
{[%clk 0:02:50]} 10. Bxb4 {[%clk 0:02:41]} 10... Qxb4+ {[%clk 0:02:48]} 11. Qd2
{[%clk 0:02:41.2]} 11... Qxd2+ {[%clk 0:02:44.8]} 12. Kxd2 {[%clk 0:02:41.3]}
12... Nc6 {[%clk 0:02:45.4]} 13. Bb5 {[%clk 0:02:40.4]} 13... Bd7 {[%clk
0:02:44.8]} 14. Ke3 {[%clk 0:02:35.6]} 14... Ke7 {[%clk 0:02:44.8]} 15. Bxc6
{[%clk 0:02:21.3]} 15... Bxc6 {[%clk 0:02:44.2]} 16. Ne5 {[%clk 0:02:20.6]}
16... Rhc8 {[%clk 0:02:41.4]} 17. Rhc1 {[%clk 0:02:18.4]} 17... Be8 {[%clk
0:02:40.7]} 18. f4 {[%clk 0:02:14.5]} 18... f6 {[%clk 0:02:40.7]} 19. Nd3 {[%clk
0:02:11.2]} 19... b6 {[%clk 0:02:39.9]} 20. g4 {[%clk 0:02:07.3]} 20... h5
{[%clk 0:02:37.6]} 21. h3 {[%clk 0:02:02.4]} 21... hxg4 {[%clk 0:02:30.1]} 22.
hxg4 {[%clk 0:02:02.1]} 22... Bb5 {[%clk 0:02:30.6]} 23. f5 {[%clk 0:01:56.1]}
23... exf5 {[%clk 0:02:02.4]} 24. gxf5 {[%clk 0:01:55.1]} 24... Kd6 {[%clk
0:02:01.4]} 25. Nf4 {[%clk 0:01:34.3]} 25... Rh8 {[%clk 0:01:56.9]} 26. a4
{[%clk 0:01:29]} 26... Ba6 {[%clk 0:01:50]} 27. a5 {[%clk 0:01:16.8]} 27... Rab8
{[%clk 0:01:48.4]} 28. Rc3 {[%clk 0:01:07.1]} 28... b5 {[%clk 0:01:29.2]} 29. d5
{[%clk 0:00:58.2]} 29... Rbc8 {[%clk 0:01:20.8]} 30. Rac1 {[%clk 0:00:57.1]}
30... b4 {[%clk 0:01:14.3]} 31. Rc6+ {[%clk 0:00:56]} 31... Kd7 {[%clk
0:01:13.5]} 32. Ne6 {[%clk 0:00:43.8]} 32... Rh3+ {[%clk 0:01:00]} 33. Kf4
{[%clk 0:00:35.6]} 33... Rxc6 {[%clk 0:00:47]} 34. Rxc6 {[%clk 0:00:34.8]} 34...
Be2 {[%clk 0:00:45.7]} 35. Nd4 {[%clk 0:00:24.1]} 35... Bd1 {[%clk 0:00:41.8]}
36. e5 {[%clk 0:00:16.3]} 36... Rh4+ {[%clk 0:00:38.2]} 37. Ke3 {[%clk
0:00:15.9]} 37... fxe5 {[%clk 0:00:38.7]} 38. Ne6 {[%clk 0:00:14.9]} 38... Rh3+
{[%clk 0:00:30.1]} 39. Ke4 {[%clk 0:00:14.6]} 39... b3 {[%clk 0:00:29.1]} 40.
Kxe5 {[%clk 0:00:14.4]} 40... Re3+ {[%clk 0:00:27.3]} 41. Kd4 {[%clk 0:00:13.7]}
41... b2 {[%clk 0:00:27.5]} 42. Rc7+ {[%clk 0:00:13.9]} 42... Kd6 {[%clk
0:00:27.2]} 43. Rb7 {[%clk 0:00:14]} 43... Rb3 {[%clk 0:00:26.1]} 44. Rxa7
{[%clk 0:00:09.9]} 44... b1=Q {[%clk 0:00:25.3]} 45. Ra6+ {[%clk 0:00:10.2]}
45... Ke7 {[%clk 0:00:25.2]} 46. d6+ {[%clk 0:00:10.4]} 46... Kf6 {[%clk
0:00:23.8]} 47. d7 {[%clk 0:00:10.4]} 47... Qd3+ {[%clk 0:00:23.2]} 48. Kc5
{[%clk 0:00:10.7]} 48... Rb5+ {[%clk 0:00:19]} 49. Kc6 {[%clk 0:00:10]} 49...
Qd5+ {[%clk 0:00:18.6]} 50. Kc7 {[%clk 0:00:10.3]} 50... Rb7+ {[%clk 0:00:18.7]}
51. Kc8 {[%clk 0:00:10.5]} 51... Qxd7# {[%clk 0:00:19.2]} 0-1

[Event "Late-Titled-Tuesday-Blitz-May-14-2024"]
[Site "Chess.com"]
[Date "2024.05.14"]
[Round "7"]
[White "sergiochess83"]
[Black "Rud_Makarian"]
[Result "1/2-1/2"]
[WhiteElo "2857"]
[BlackElo "2947"]
[TimeControl "180+1"]
[EndTime "15:17:19 PDT"]
[Termination "Game drawn by repetition"]

1. e4 {[%clk 0:03:00.9]} 1... c5 {[%clk 0:02:59.2]} 2. Nf3 {[%clk 0:03:00.3]}
2... d6 {[%clk 0:02:58.6]} 3. d4 {[%clk 0:02:56.6]} 3... cxd4 {[%clk 0:02:59.5]}
4. Nxd4 {[%clk 0:02:57.3]} 4... Nf6 {[%clk 0:03:00.3]} 5. Nc3 {[%clk 0:02:57.7]}
5... Nc6 {[%clk 0:03:01]} 6. Bg5 {[%clk 0:02:53.4]} 6... Bd7 {[%clk 0:03:00.9]}
7. Bxf6 {[%clk 0:02:45.5]} 7... gxf6 {[%clk 0:02:59.5]} 8. Qd2 {[%clk
0:02:42.8]} 8... Nxd4 {[%clk 0:02:55.3]} 9. Qxd4 {[%clk 0:02:42.5]} 9... Qa5
{[%clk 0:02:55.9]} 10. O-O-O {[%clk 0:02:36]} 10... Rc8 {[%clk 0:02:55.9]} 11.
Kb1 {[%clk 0:02:34.5]} 11... h5 {[%clk 0:02:55.1]} 12. f4 {[%clk 0:02:21.9]}
12... Qc5 {[%clk 0:02:52.1]} 13. Qd3 {[%clk 0:02:08.2]} 13... Bg7 {[%clk
0:02:52.3]} 14. f5 {[%clk 0:02:04.7]} 14... h4 {[%clk 0:02:52.3]} 15. Be2 {[%clk
0:02:03.4]} 15... Bh6 {[%clk 0:02:52.1]} 16. Nd5 {[%clk 0:01:49.6]} 16... a5
{[%clk 0:02:49.1]} 17. Rhf1 {[%clk 0:01:45.1]} 17... Ba4 {[%clk 0:02:48.4]} 18.
b3 {[%clk 0:01:39.4]} 18... Bc6 {[%clk 0:02:48.1]} 19. c4 {[%clk 0:01:28.4]}
19... Bg5 {[%clk 0:02:47.1]} 20. Rf3 {[%clk 0:01:16.8]} 20... Kf8 {[%clk
0:02:35.3]} 21. Rh3 {[%clk 0:01:14.9]} 21... b5 {[%clk 0:02:21.7]} 22. Qd4
{[%clk 0:00:52.8]} 22... bxc4 {[%clk 0:01:15.5]} 23. Qxc5 {[%clk 0:00:51.9]}
23... dxc5 {[%clk 0:01:16.4]} 24. Bxc4 {[%clk 0:00:52]} 24... e6 {[%clk
0:01:10.9]} 25. fxe6 {[%clk 0:00:50.1]} 25... fxe6 {[%clk 0:01:11]} 26. Nc3
{[%clk 0:00:50.6]} 26... Ke7 {[%clk 0:01:09.8]} 27. Rhd3 {[%clk 0:00:49.2]}
27... Bf4 {[%clk 0:01:07.1]} 28. Bb5 {[%clk 0:00:47]} 28... Bxb5 {[%clk
0:00:38.2]} 29. Nxb5 {[%clk 0:00:46.9]} 29... Rhd8 {[%clk 0:00:38.8]} 30. Rxd8
{[%clk 0:00:46.4]} 30... Rxd8 {[%clk 0:00:39.7]} 31. Rxd8 {[%clk 0:00:46.5]}
31... Kxd8 {[%clk 0:00:40.4]} 32. h3 {[%clk 0:00:46.8]} 32... Kd7 {[%clk
0:00:39.6]} 33. Na3 {[%clk 0:00:44.9]} 33... Kc6 {[%clk 0:00:39]} 34. Nc4 {[%clk
0:00:44.6]} 34... Kb5 {[%clk 0:00:27.5]} 35. a4+ {[%clk 0:00:44.5]} 35... Kb4
{[%clk 0:00:27]} 36. Kc2 {[%clk 0:00:45.4]} 36... Bc7 {[%clk 0:00:19.2]} 37. Nb2
{[%clk 0:00:44.7]} 37... Bd6 {[%clk 0:00:13.8]} 38. Nd3+ {[%clk 0:00:44.4]}
38... Ka3 {[%clk 0:00:14.4]} 39. Kc3 {[%clk 0:00:44.7]} 39... Ka2 {[%clk
0:00:13]} 40. Kc4 {[%clk 0:00:39.1]} 40... Ka3 {[%clk 0:00:11.9]} 41. Kc3 {[%clk
0:00:21.3]} 41... Ka2 {[%clk 0:00:09.1]} 42. Kc2 {[%clk 0:00:19.9]} 42... Ka3
{[%clk 0:00:08.6]} 43. Nb2 {[%clk 0:00:18.2]} 43... Bc7 {[%clk 0:00:07.2]} 44.
Nc4+ {[%clk 0:00:16.1]} 44... Kb4 {[%clk 0:00:07.7]} 45. Ne3 {[%clk 0:00:09.5]}
45... Be5 {[%clk 0:00:06.4]} 46. Nc4 {[%clk 0:00:06.9]} 46... Bd4 {[%clk
0:00:06.6]} 47. Nd6 {[%clk 0:00:05.5]} 47... Be5 {[%clk 0:00:06.1]} 48. Nc4
{[%clk 0:00:04.4]} 48... Bd4 {[%clk 0:00:03.7]} 49. Nd2 {[%clk 0:00:04.6]} 49...
Be5 {[%clk 0:00:03.4]} 50. Nc4 {[%clk 0:00:03.8]} 1/2-1/2

[Event "Late-Titled-Tuesday-Blitz-May-14-2024"]
[Site "Chess.com"]
[Date "2024.05.14"]
[Round "7"]
[White "Msb2"]
[Black "FaustinoOro"]
[Result "1-0"]
[WhiteElo "3074"]
[BlackElo "2918"]
[TimeControl "180+1"]
[EndTime "15:17:21 PDT"]
[Termination "Msb2 won by checkmate"]

1. d4 {[%clk 0:03:00.9]} 1... Nf6 {[%clk 0:03:00]} 2. c4 {[%clk 0:03:01]} 2...
c6 {[%clk 0:02:50.5]} 3. Nf3 {[%clk 0:03:00.2]} 3... d5 {[%clk 0:02:50.1]} 4.
Nc3 {[%clk 0:03:00.9]} 4... e6 {[%clk 0:02:49.5]} 5. Qc2 {[%clk 0:03:01.1]} 5...
dxc4 {[%clk 0:02:32.3]} 6. e4 {[%clk 0:03:01.2]} 6... b5 {[%clk 0:02:31.8]} 7.
Be2 {[%clk 0:03:01.9]} 7... Bb7 {[%clk 0:02:29.7]} 8. O-O {[%clk 0:03:02.2]}
8... Be7 {[%clk 0:02:29.6]} 9. Rb1 {[%clk 0:03:02.4]} 9... O-O {[%clk
0:02:28.5]} 10. b3 {[%clk 0:03:01.9]} 10... cxb3 {[%clk 0:02:27.4]} 11. Rxb3
{[%clk 0:03:02.8]} 11... Nbd7 {[%clk 0:02:26.3]} 12. Bd3 {[%clk 0:03:02.7]}
12... h6 {[%clk 0:02:19.5]} 13. e5 {[%clk 0:03:02.3]} 13... Nd5 {[%clk
0:02:19.3]} 14. Nxd5 {[%clk 0:03:02.9]} 14... cxd5 {[%clk 0:02:10.8]} 15. Bxb5
{[%clk 0:03:02.9]} 15... Nb6 {[%clk 0:02:10.1]} 16. Qe2 {[%clk 0:02:58.2]} 16...
Rc8 {[%clk 0:02:02.5]} 17. Bd2 {[%clk 0:02:46.8]} 17... Bc6 {[%clk 0:01:52]} 18.
Ba6 {[%clk 0:02:41]} 18... Rb8 {[%clk 0:01:50.9]} 19. Bb4 {[%clk 0:01:53.6]}
19... Nc4 {[%clk 0:01:43.4]} 20. Bxe7 {[%clk 0:01:52.8]} 20... Qxe7 {[%clk
0:01:44.3]} 21. Nd2 {[%clk 0:01:50.4]} 21... Nxd2 {[%clk 0:01:35.3]} 22. Qxd2
{[%clk 0:01:51.3]} 22... Rxb3 {[%clk 0:01:35.3]} 23. axb3 {[%clk 0:01:51.8]}
23... Qa3 {[%clk 0:01:36]} 24. Bd3 {[%clk 0:01:37.8]} 24... Qxb3 {[%clk
0:01:34]} 25. Rb1 {[%clk 0:01:37.5]} 25... Qa4 {[%clk 0:01:33.5]} 26. h4 {[%clk
0:01:36]} 26... Qa3 {[%clk 0:01:21.2]} 27. Bc2 {[%clk 0:01:32.9]} 27... Rc8
{[%clk 0:01:00.4]} 28. Rb3 {[%clk 0:01:18.3]} 28... Qa1+ {[%clk 0:00:58.3]} 29.
Rb1 {[%clk 0:01:18.8]} 29... Qa3 {[%clk 0:00:56.3]} 30. Kh2 {[%clk 0:00:56.2]}
30... Ba4 {[%clk 0:00:51.3]} 31. Bd3 {[%clk 0:00:56.6]} 31... Be8 {[%clk
0:00:28.1]} 32. Qe3 {[%clk 0:00:54.4]} 32... Qe7 {[%clk 0:00:27.3]} 33. Qg3
{[%clk 0:00:40.3]} 33... a5 {[%clk 0:00:24.2]} 34. f4 {[%clk 0:00:41]} 34... a4
{[%clk 0:00:22]} 35. f5 {[%clk 0:00:41.6]} 35... exf5 {[%clk 0:00:22.6]} 36.
Bxf5 {[%clk 0:00:42.5]} 36... Ra8 {[%clk 0:00:22.9]} 37. Re1 {[%clk 0:00:43.3]}
37... a3 {[%clk 0:00:22.3]} 38. e6 {[%clk 0:00:43.8]} 38... a2 {[%clk
0:00:18.2]} 39. exf7+ {[%clk 0:00:28.6]} 39... Qxf7 {[%clk 0:00:19.1]} 40. Qe5
{[%clk 0:00:26.1]} 40... Bd7 {[%clk 0:00:10.9]} 41. Bg6 {[%clk 0:00:26.5]} 41...
Qe6 {[%clk 0:00:07]} 42. Qg3 {[%clk 0:00:05.2]} 42... a1=Q {[%clk 0:00:02.9]}
43. Rxa1 {[%clk 0:00:05.1]} 43... Rxa1 {[%clk 0:00:03.6]} 44. Qb8+ {[%clk
0:00:05.8]} 44... Be8 {[%clk 0:00:04.3]} 45. Bxe8 {[%clk 0:00:06.1]} 45... Kh7
{[%clk 0:00:05]} 46. h5 {[%clk 0:00:05.8]} 46... g5 {[%clk 0:00:02.7]} 47. hxg6+
{[%clk 0:00:05.9]} 47... Kg7 {[%clk 0:00:03.4]} 48. Qc7+ {[%clk 0:00:06.6]}
48... Kf6 {[%clk 0:00:03.4]} 49. Qf4+ {[%clk 0:00:05.9]} 49... Qf5 {[%clk
0:00:03.6]} 50. Qd6+ {[%clk 0:00:04.3]} 50... Qe6 {[%clk 0:00:04.1]} 51. Qf8+
{[%clk 0:00:04.9]} 51... Kg5 {[%clk 0:00:04.7]} 52. g7 {[%clk 0:00:05.1]} 52...
Kh4 {[%clk 0:00:04.8]} 53. Qf4+ {[%clk 0:00:04.7]} 53... Qg4 {[%clk 0:00:04.6]}
54. g3# {[%clk 0:00:05.1]} 1-0

[Event "Late-Titled-Tuesday-Blitz-May-14-2024"]
[Site "Chess.com"]
[Date "2024.05.14"]
[Round "7"]
[White "hblanco"]
[Black "PepeCuenca"]
[Result "1/2-1/2"]
[WhiteElo "2618"]
[BlackElo "2813"]
[TimeControl "180+1"]
[EndTime "15:17:21 PDT"]
[Termination "Game drawn - insufficient material"]

1. e4 {[%clk 0:03:00]} 1... c5 {[%clk 0:02:59.9]} 2. c3 {[%clk 0:02:59.7]} 2...
Nf6 {[%clk 0:02:59.7]} 3. e5 {[%clk 0:02:59.7]} 3... Nd5 {[%clk 0:03:00.4]} 4.
d4 {[%clk 0:03:00.6]} 4... cxd4 {[%clk 0:03:01.3]} 5. cxd4 {[%clk 0:03:01.3]}
5... Nc6 {[%clk 0:03:01.6]} 6. Nf3 {[%clk 0:03:01.6]} 6... d6 {[%clk 0:03:01.7]}
7. Bc4 {[%clk 0:03:02]} 7... dxe5 {[%clk 0:02:46.2]} 8. dxe5 {[%clk 0:03:02.9]}
8... Ndb4 {[%clk 0:02:45.6]} 9. O-O {[%clk 0:02:45.9]} 9... Qxd1 {[%clk
0:02:44.2]} 10. Rxd1 {[%clk 0:02:46.8]} 10... g6 {[%clk 0:01:15]} 11. Nc3 {[%clk
0:02:44.1]} 11... Bg7 {[%clk 0:01:13.2]} 12. Bf4 {[%clk 0:02:36.6]} 12... Bg4
{[%clk 0:01:04.6]} 13. Nd5 {[%clk 0:02:35.8]} 13... Nxd5 {[%clk 0:01:03.1]} 14.
Bxd5 {[%clk 0:02:36.7]} 14... O-O {[%clk 0:01:02]} 15. Rac1 {[%clk 0:02:17.8]}
15... Rac8 {[%clk 0:00:59.4]} 16. h3 {[%clk 0:02:10.9]} 16... Bxf3 {[%clk
0:00:54]} 17. Bxf3 {[%clk 0:02:11.8]} 17... Bxe5 {[%clk 0:00:51.6]} 18. Bxe5
{[%clk 0:01:59.6]} 18... Nxe5 {[%clk 0:00:52.5]} 19. Bxb7 {[%clk 0:02:00]} 19...
Rxc1 {[%clk 0:00:49.1]} 20. Rxc1 {[%clk 0:02:00.9]} 20... Rd8 {[%clk 0:00:47.6]}
21. Rc2 {[%clk 0:01:29.5]} 21... f5 {[%clk 0:00:39.6]} 22. g3 {[%clk 0:01:27.5]}
22... Kf7 {[%clk 0:00:38.7]} 23. f4 {[%clk 0:01:23.1]} 23... Nd3 {[%clk
0:00:31.8]} 24. a3 {[%clk 0:01:22.1]} 24... Rd6 {[%clk 0:00:14.5]} 25. b4 {[%clk
0:01:14.1]} 25... Kf6 {[%clk 0:00:13.1]} 26. Bf3 {[%clk 0:01:01]} 26... e5
{[%clk 0:00:13]} 27. fxe5+ {[%clk 0:01:01.9]} 27... Nxe5 {[%clk 0:00:12.8]} 28.
Be2 {[%clk 0:01:02.2]} 28... h5 {[%clk 0:00:10.5]} 29. Kf2 {[%clk 0:00:58]}
29... g5 {[%clk 0:00:10.6]} 30. Rc7 {[%clk 0:00:55.4]} 30... Rd7 {[%clk
0:00:09.5]} 31. Rxd7 {[%clk 0:00:53.8]} 31... Nxd7 {[%clk 0:00:10.4]} 32. Bxh5
{[%clk 0:00:54.5]} 32... Nb6 {[%clk 0:00:09.7]} 33. Be2 {[%clk 0:00:53.2]} 33...
Ke5 {[%clk 0:00:07.1]} 34. Ke3 {[%clk 0:00:50.9]} 34... Nd5+ {[%clk 0:00:07.1]}
35. Kd3 {[%clk 0:00:50.5]} 35... f4 {[%clk 0:00:07.7]} 36. Bf3 {[%clk
0:00:46.6]} 36... fxg3 {[%clk 0:00:06.8]} 37. Bxd5 {[%clk 0:00:46.5]} 37... Kxd5
{[%clk 0:00:05.3]} 38. Ke3 {[%clk 0:00:46.9]} 38... Kc4 {[%clk 0:00:05.3]} 39.
Kf3 {[%clk 0:00:46.3]} 39... Kb3 {[%clk 0:00:05.9]} 40. Kxg3 {[%clk 0:00:46.8]}
40... Kxa3 {[%clk 0:00:06.7]} 41. b5 {[%clk 0:00:30.7]} 41... Kb4 {[%clk
0:00:06.7]} 42. b6 {[%clk 0:00:18.8]} 42... axb6 {[%clk 0:00:06.9]} 43. Kg4
{[%clk 0:00:19.4]} 43... Kc5 {[%clk 0:00:07.1]} 44. Kxg5 {[%clk 0:00:19.7]}
44... b5 {[%clk 0:00:05.6]} 45. h4 {[%clk 0:00:20]} 45... b4 {[%clk 0:00:06.5]}
46. h5 {[%clk 0:00:20.3]} 46... b3 {[%clk 0:00:07.4]} 47. h6 {[%clk 0:00:20.6]}
47... b2 {[%clk 0:00:08.3]} 48. h7 {[%clk 0:00:21]} 48... b1=Q {[%clk
0:00:08.7]} 49. h8=Q {[%clk 0:00:20.7]} 49... Qg1+ {[%clk 0:00:08.8]} 50. Kf5
{[%clk 0:00:20.9]} 50... Qf2+ {[%clk 0:00:07.4]} 51. Kg4 {[%clk 0:00:20.7]}
51... Qg2+ {[%clk 0:00:07.2]} 52. Kf4 {[%clk 0:00:20.3]} 52... Qf2+ {[%clk
0:00:06.3]} 53. Kg4 {[%clk 0:00:20.5]} 53... Qg1+ {[%clk 0:00:06.2]} 54. Kf3
{[%clk 0:00:20.4]} 54... Qd1+ {[%clk 0:00:05.9]} 55. Kf2 {[%clk 0:00:20.1]}
55... Qd2+ {[%clk 0:00:05.8]} 56. Kf1 {[%clk 0:00:19.9]} 56... Qd1+ {[%clk
0:00:05.5]} 57. Kf2 {[%clk 0:00:19.9]} 57... Qd4+ {[%clk 0:00:06.2]} 58. Qxd4+
{[%clk 0:00:19.2]} 58... Kxd4 {[%clk 0:00:07.1]} 1/2-1/2

[Event "Late-Titled-Tuesday-Blitz-May-14-2024"]
[Site "Chess.com"]
[Date "2024.05.14"]
[Round "7"]
[White "ImportedItalianMaple"]
[Black "ClayK1ng"]
[Result "1-0"]
[WhiteElo "2573"]
[BlackElo "2406"]
[TimeControl "180+1"]
[EndTime "15:17:21 PDT"]
[Termination "ImportedItalianMaple won by resignation"]

1. e4 {[%clk 0:03:00.9]} 1... d5 {[%clk 0:02:52.2]} 2. exd5 {[%clk 0:03:00.4]}
2... Qxd5 {[%clk 0:02:53.1]} 3. Nc3 {[%clk 0:03:00.7]} 3... Qe5+ {[%clk
0:02:53.5]} 4. Be2 {[%clk 0:02:59.6]} 4... Bg4 {[%clk 0:02:54]} 5. d4 {[%clk
0:02:46.1]} 5... Bxe2 {[%clk 0:02:54.5]} 6. Ncxe2 {[%clk 0:02:46.8]} 6... Qd6
{[%clk 0:02:44.8]} 7. Nf3 {[%clk 0:02:46.3]} 7... c6 {[%clk 0:02:44.9]} 8. Bf4
{[%clk 0:02:42.7]} 8... Qd7 {[%clk 0:02:44.6]} 9. Ne5 {[%clk 0:02:40.5]} 9...
Qd8 {[%clk 0:02:44.7]} 10. O-O {[%clk 0:02:24.7]} 10... Nf6 {[%clk 0:02:44.7]}
11. c4 {[%clk 0:02:23.6]} 11... e6 {[%clk 0:02:45.1]} 12. Nc3 {[%clk 0:02:17.7]}
12... Nbd7 {[%clk 0:02:44.1]} 13. d5 {[%clk 0:02:05]} 13... cxd5 {[%clk
0:02:43.5]} 14. cxd5 {[%clk 0:02:04.4]} 14... Nxe5 {[%clk 0:02:43.9]} 15. Bxe5
{[%clk 0:01:58.5]} 15... Nxd5 {[%clk 0:02:44.4]} 16. Nxd5 {[%clk 0:01:46.9]}
16... Qxd5 {[%clk 0:02:45.3]} 17. Qxd5 {[%clk 0:01:47]} 17... exd5 {[%clk
0:02:46.2]} 18. Rfe1 {[%clk 0:01:47.8]} 18... f6 {[%clk 0:02:41]} 19. Bxf6+
{[%clk 0:01:39.7]} 19... Kf7 {[%clk 0:02:41.5]} 20. Bd4 {[%clk 0:01:39.8]} 20...
Bb4 {[%clk 0:02:38.6]} 21. Re5 {[%clk 0:01:37.5]} 21... Rhd8 {[%clk 0:02:30.1]}
22. Rc1 {[%clk 0:01:14.7]} 22... Rac8 {[%clk 0:02:24]} 23. Rxc8 {[%clk
0:01:14.9]} 23... Rxc8 {[%clk 0:02:24.9]} 24. g4 {[%clk 0:01:12.7]} 24... Rd8
{[%clk 0:02:01.7]} 25. Kg2 {[%clk 0:01:10]} 25... b6 {[%clk 0:01:59.6]} 26. f4
{[%clk 0:01:09]} 26... g6 {[%clk 0:01:59.4]} 27. Kf3 {[%clk 0:01:06.8]} 27...
Bc5 {[%clk 0:01:56.6]} 28. Bc3 {[%clk 0:00:55.6]} 28... d4 {[%clk 0:01:53.8]}
29. Bd2 {[%clk 0:00:56.2]} 29... d3 {[%clk 0:01:54.3]} 30. f5 {[%clk 0:00:50.1]}
30... Bd4 {[%clk 0:01:49]} 31. fxg6+ {[%clk 0:00:45.5]} 31... hxg6 {[%clk
0:01:49.9]} 32. Rb5 {[%clk 0:00:41.4]} 32... Re8 {[%clk 0:01:41.8]} 33. Rb3
{[%clk 0:00:28.4]} 33... Re7 {[%clk 0:01:41.9]} 34. Rxd3 {[%clk 0:00:18.1]}
34... Bxb2 {[%clk 0:01:42]} 35. h4 {[%clk 0:00:18.4]} 35... Bf6 {[%clk
0:01:41.7]} 36. g5 {[%clk 0:00:17.4]} 36... Bg7 {[%clk 0:01:35.8]} 37. Rd6
{[%clk 0:00:16.2]} 37... Rc7 {[%clk 0:01:33.3]} 38. Bb4 {[%clk 0:00:14.6]} 38...
Be5 {[%clk 0:01:32.4]} 39. Rd5 {[%clk 0:00:14.5]} 39... Ke6 {[%clk 0:01:32.6]}
40. Rd3 {[%clk 0:00:14.4]} 40... Rc4 {[%clk 0:01:32.8]} 41. Be1 {[%clk
0:00:12.8]} 41... Rf4+ {[%clk 0:01:32.1]} 42. Kg2 {[%clk 0:00:12.3]} 42... Ra4
{[%clk 0:01:32.1]} 43. a3 {[%clk 0:00:12.1]} 43... Kf5 {[%clk 0:01:27.8]} 44.
Kf3 {[%clk 0:00:10.4]} 44... Rf4+ {[%clk 0:01:24.2]} 45. Ke3 {[%clk 0:00:11]}
45... Rg4 {[%clk 0:01:22.6]} 46. Rd7 {[%clk 0:00:09.6]} 46... Bg3 {[%clk
0:01:16.6]} 47. Rf7+ {[%clk 0:00:06.3]} 47... Ke6 {[%clk 0:01:09.5]} 48. Rf6+
{[%clk 0:00:06.2]} 48... Kd5 {[%clk 0:01:10.2]} 49. Kf3 {[%clk 0:00:06.3]} 49...
Rxh4 {[%clk 0:01:04.8]} 50. Bxg3 {[%clk 0:00:06]} 50... Ra4 {[%clk 0:01:05.7]}
51. Rxg6 {[%clk 0:00:06.4]} 51... Rxa3+ {[%clk 0:01:05.7]} 52. Kg4 {[%clk
0:00:07.2]} 52... b5 {[%clk 0:01:04.3]} 53. Rg8 {[%clk 0:00:06.4]} 53... Ke6
{[%clk 0:01:04.7]} 54. Rb8 {[%clk 0:00:06.7]} 54... a6 {[%clk 0:01:03.6]} 55.
Bf4 {[%clk 0:00:06.9]} 55... Ra1 {[%clk 0:01:02.2]} 56. Rb6+ {[%clk 0:00:07.3]}
56... Kf7 {[%clk 0:01:02.1]} 57. Kf5 {[%clk 0:00:08]} 57... Rf1 {[%clk
0:01:00.3]} 58. Rb7+ {[%clk 0:00:08.5]} 58... Kg8 {[%clk 0:01:00.5]} 59. Ke5
{[%clk 0:00:08]} 59... Rf3 {[%clk 0:00:56.7]} 60. Rb6 {[%clk 0:00:07.8]} 60...
Re3+ {[%clk 0:00:55.3]} 61. Kf6 {[%clk 0:00:07.5]} 61... Re8 {[%clk 0:00:54.5]}
62. Rxa6 {[%clk 0:00:07.3]} 62... Rf8+ {[%clk 0:00:55.2]} 63. Ke5 {[%clk
0:00:07.8]} 63... Rb8 {[%clk 0:00:55.5]} 64. Kf6 {[%clk 0:00:06.3]} 64... Rf8+
{[%clk 0:00:55.7]} 65. Ke5 {[%clk 0:00:06.9]} 65... Rb8 {[%clk 0:00:55.9]} 66.
Kf5 {[%clk 0:00:07.6]} 66... Rf8+ {[%clk 0:00:56.1]} 67. Rf6 {[%clk 0:00:07.3]}
67... Rc8 {[%clk 0:00:55.6]} 68. Be5 {[%clk 0:00:07]} 68... b4 {[%clk
0:00:55.2]} 69. Rb6 {[%clk 0:00:07.5]} 69... Rf8+ {[%clk 0:00:55.2]} 70. Kg6
{[%clk 0:00:07.4]} 70... Re8 {[%clk 0:00:49.6]} 71. Bf6 {[%clk 0:00:07.8]} 71...
Re4 {[%clk 0:00:45.4]} 72. Rb8+ {[%clk 0:00:06.7]} 1-0